[Event "105th British-ch 2018"]
[Site "Hull"]
[Date "2018.08.01"]
[Round "5"]
[White "Murphy, Conor E"]
[Black "Wall, Tim P"]
[Result "1-0"]
[ECO "C42"]
[WhiteElo "2336"]
[BlackElo "2234"]
[Annotator "NA"]
[PlyCount "95"]
[EventDate "2018.07.28"]
[EventType "swiss"]
[EventCountry "GBR"]
[SourceTitle "playchess.com"]
[Source "ChessBase"]
[SourceQuality "1"]
[TimeControl "40/5400+30:1800+30"]

1. e4 {[%emt 0:00:00]} e5 {[%emt 0:17:53]} 2. Nf3 {[%emt 0:00:00]} Nf6 {[%emt 0:00:31]} 3. Nxe5 {[%emt 0:01:42]} d6 {[%emt 0:00:14]} 4. Nf3 {[%emt 0:00:16]} Nxe4 {[%emt 0:00:26]} 5. Nc3 {[%emt 0:00:53]} Nxc3 {[%emt 0:00:16]} 6. dxc3 {[%emt 0:00:04]} Be7 {[%emt 0:00:14]} 7. Be3 {[%emt 0:00:05]} O-O {[%emt 0:00:54]} 8. Qd2 {[%emt 0:00:05]} Nd7 {[%emt 0:03:00]} 9. O-O-O {[%emt 0:00:43]} b6 {[%emt 0:00:27]} 10. h4 {[%emt 0:06:41]} Bb7 {[%emt 0:01:04]} 11. h5 {[%emt 0:01:46]} Ne5 {[%emt 0:08:50]} 12. Nd4 {[%emt 0:09:10]} Bf6 {[%emt 0:08:24]} 13. Be2 {[%emt 0:05:45]} Qd7 {[%emt 0:09:45]} 14. Bg5 {[%emt 0:18:28]} Bxg5 {[%emt 0:17:18]} 15. Qxg5 {[%emt 0:00:07]} f6 {[%emt 0:00:08]} 16. Qg3 {[%emt 0:03:27]} c5 {[%emt 0:06:26]} 17. Nb5 {[%emt 0:05:24]} d5 {[%emt 0:01:05]} 18. f4 {[%emt 0:00:45]} a6 {[%emt 0:04:18]} 19. Na3 {[%emt 0:06:28]} Nf7 {[%emt 0:03:20]} 20. h6 {[%emt 0:07:23]} g6 {[%emt 0:00:07]} 21. Bh5 {[%emt 0:01:02]} Nd6 {[%emt 0:01:50]} 22. Bf3 {[%emt 0:03:09]} Qf7 {[%emt 0:03:51]} 23. Qf2 {[%emt 0:11:37]} Rfe8 {[%emt 0:04:58]} 24. Rhe1 {[%emt 0:03:22]} Rxe1 {[%emt 0:01:23]} 25. Rxe1 {[%emt 0:00:25]} Re8 {[%emt 0:00:12]} 26. Nb1 {[%emt 0:02:24]} Ne4 {[%emt 0:01:57]} 27. Bxe4 {[%emt 0:03:12]} dxe4 {[%emt 0:00:05]} 28. g4 {[%emt 0:00:09]} Qf8 {[%emt 0:01:02]} 29. Nd2 {[%emt 0:01:27]} Qxh6 {[%emt 0:02:20]} 30. Nc4 {[%emt 0:00:13]} Qh3 {[%emt 0:01:14]} 31. f5 {[%emt 0:05:21]} Qxg4 {[%emt 0:01:11]} 32. fxg6 {[%emt 0:00:19]} Qg5+ {[%emt 0:00:31]} 33. Kb1 {[%emt 0:00:08]} hxg6 {[%emt 0:00:14]} 34. Nd6 {[%emt 0:01:35]} e3 {[%emt 0:00:34]} 35. Qh2 {[%emt 0:00:34]} Re7 {[%emt 0:00:21]} 36. Nxb7 {[%emt 0:00:42]} Rxb7 {[%emt 0:00:06]} 37. Rh1 {[%emt 0:00:02]} Qd5 {[%emt 0:01:15]} 38. Qh8+ {[%emt 0:00:39]} Kf7 {[%emt 0:00:04]} 39. Rh7+ {[%emt 0:00:23]} Ke6 {[%emt 0:00:05]} 40. Qg8+ {[%emt 0:00:17]} Ke5 {[%emt 0:00:47]} 41. Qxd5+ {[%emt 0:04:25]} Kxd5 {[%emt 0:00:08]} 42. Rxb7 {[%emt 0:00:04]} Ke4 {[%emt 0:03:49]} 43. Kc1 {[%emt 0:01:51]} Kf3 {[%emt 0:02:11]} 44. Rxb6 {[%emt 0:01:01]} f5 {[%emt 0:00:12]} 45. Rxg6 {[%emt 0:01:57]} f4 {[%emt 0:06:28]} 46. Kd1 {[%emt 0:01:52]} Kf2 {[%emt 0:00:42]} 47. Re6 {[%emt 0:00:12]} a5 {[%emt 0:02:13]} 48. a3 {[%emt 0:01:01]} 1-0

[Event "105th British-ch 2018"]
[Site "Hull"]
[Date "2018.08.01"]
[Round "5"]
[White "Fitzsimons, David"]
[Black "Kalaiyalahan, Akshaya"]
[Result "1/2-1/2"]
[ECO "B31"]
[WhiteElo "2328"]
[BlackElo "2138"]
[Annotator "NA"]
[PlyCount "90"]
[EventDate "2018.07.28"]
[EventType "swiss"]
[EventCountry "GBR"]
[SourceTitle "playchess.com"]
[Source "ChessBase"]
[SourceQuality "1"]
[TimeControl "40/5400+30:1800+30"]

1. e4 {[%emt 0:00:00]} c5 {[%emt 0:00:00]} 2. Nf3 {[%emt 0:00:00]} Nc6 {[%emt 0:00:00]} 3. Bb5 {[%emt 0:00:00]} g6 {[%emt 0:00:00]} 4. O-O {[%emt 0:00:00]} Bg7 {[%emt 0:00:07]} 5. Re1 {[%emt 0:00:02]} Nf6 {[%emt 0:00:24]} 6. e5 {[%emt 0:00:21]} Nd5 {[%emt 0:00:18]} 7. Nc3 {[%emt 0:00:09]} Nc7 {[%emt 0:00:39]} 8. Bxc6 {[%emt 0:00:08]} dxc6 {[%emt 0:00:23]} 9. Ne4 {[%emt 0:01:08]} b6 {[%emt 0:00:33]} 10. d3 {[%emt 0:00:30]} O-O {[%emt 0:00:30]} 11. h3 {[%emt 0:01:01]} Ne6 {[%emt 0:03:59]} 12. Qe2 {[%emt 0:05:05]} Nd4 {[%emt 0:04:07]} 13. Nxd4 {[%emt 0:00:17]} Qxd4 {[%emt 0:01:35]} 14. Ng5 {[%emt 0:01:45]} h6 {[%emt 0:03:54]} 15. Nf3 {[%emt 0:00:49]} Qd5 {[%emt 0:01:52]} 16. c4 {[%emt 0:01:32]} Qd8 {[%emt 0:03:32]} 17. Bf4 {[%emt 0:00:53]} Bf5 {[%emt 0:07:14]} 18. Rad1 {[%emt 0:00:17]} Qc8 {[%emt 0:00:56]} 19. Qe3 {[%emt 0:15:33]} Kh7 {[%emt 0:01:31]} 20. Rd2 {[%emt 0:05:15]} g5 {[%emt 0:11:16]} 21. Bg3 {[%emt 0:01:11]} Bg6 {[%emt 0:03:08]} 22. Kh2 {[%emt 0:06:00]} f5 {[%emt 0:02:48]} 23. exf6 {[%emt 0:00:10]} exf6 {[%emt 0:00:24]} 24. d4 {[%emt 0:12:45]} Re8 {[%emt 0:06:01]} 25. Qc3 {[%emt 0:00:11]} Rxe1 {[%emt 0:01:49]} 26. Nxe1 {[%emt 0:00:02]} Qe6 {[%emt 0:20:04]} 27. Nf3 {[%emt 0:03:08]} Rd8 {[%emt 0:00:56]} 28. Qa3 {[%emt 0:17:02]} cxd4 {[%emt 0:09:00]} 29. Qxa7 {[%emt 0:00:29]} f5 {[%emt 0:05:41]} 30. Qxb6 {[%emt 0:12:40]} Rd7 {[%emt 0:00:16]} 31. Bb8 {[%emt 0:00:45]} Qe4 {[%emt 0:04:15]} 32. Qa5 {[%emt 0:04:33]} d3 {[%emt 0:04:55]} 33. b3 {[%emt 0:03:39]} Bh5 {[%emt 0:01:28]} 34. Ne5 {[%emt 0:01:42]} Rb7 {[%emt 0:01:25]} 35. Bd6 {[%emt 0:00:37]} Qd4 {[%emt 0:01:06]} 36. Rxd3 {[%emt 0:05:22]} Bxe5+ {[%emt 0:00:04]} 37. Bxe5 {[%emt 0:00:05]} Qxd3 {[%emt 0:00:06]} 38. Qa8 {[%emt 0:00:09]} Rg7 {[%emt 0:00:36]} 39. Bxg7 {[%emt 0:01:50]} Qd6+ {[%emt 0:00:12]} 40. Kg1 {[%emt 0:01:19]} Kxg7 {[%emt 0:00:15]} 41. Qb7+ {[%emt 0:30:10]} Bf7 {[%emt 0:30:20]} 42. a4 {[%emt 0:00:28]} Qd1+ {[%emt 0:00:00]} 43. Kh2 {[%emt 0:00:15]} Qd6+ 44. Kg1 {[%emt 0:00:00]} Qd1+ {[%emt 0:00:00]} 45. Kh2 {[%emt 0:00:00]} Qd6+ {[%emt 0:00:00]} 1/2-1/2

[Event "105th British-ch 2018"]
[Site "Hull"]
[Date "2018.08.01"]
[Round "5"]
[White "Zapolskis, Antanas"]
[Black "Arkell, Keith C"]
[Result "0-1"]
[ECO "B06"]
[WhiteElo "2283"]
[BlackElo "2406"]
[Annotator "NA"]
[PlyCount "86"]
[EventDate "2018.07.28"]
[EventType "swiss"]
[EventCountry "GBR"]
[SourceTitle "playchess.com"]
[Source "ChessBase"]
[SourceQuality "1"]
[TimeControl "40/5400+30:1800+30"]

1. e4 {[%emt 0:00:00]} g6 {[%emt 0:03:12]} 2. d4 {[%emt 0:00:08]} Bg7 {[%emt 0:00:05]} 3. Nc3 {[%emt 0:00:10]} c6 {[%emt 0:00:37]} 4. Bc4 {[%emt 0:02:03]} d6 {[%emt 0:03:38]} 5. Qf3 {[%emt 0:06:12]} e6 {[%emt 0:00:05]} 6. Be3 {[%emt 0:00:08]} d5 {[%emt 0:00:18]} 7. Bd3 {[%emt 0:01:13]} Na6 {[%emt 0:02:31]} 8. O-O-O {[%emt 0:02:49]} Nb4 {[%emt 0:00:05]} 9. h4 {[%emt 0:00:18]} Qa5 {[%emt 0:04:12]} 10. a3 {[%emt 0:04:02]} Nxd3+ {[%emt 0:00:25]} 11. Rxd3 {[%emt 0:00:07]} h6 {[%emt 0:08:44]} 12. Bd2 {[%emt 0:08:26]} Qd8 {[%emt 0:03:40]} 13. h5 {[%emt 0:01:20]} g5 {[%emt 0:00:10]} 14. e5 {[%emt 0:00:11]} b6 {[%emt 0:00:32]} 15. Qg4 {[%emt 0:03:27]} Ba6 {[%emt 0:00:47]} 16. Rdh3 {[%emt 0:05:13]} c5 {[%emt 0:00:58]} 17. dxc5 {[%emt 0:02:03]} Qd7 {[%emt 0:00:12]} 18. cxb6 {[%emt 0:16:03]} Bxe5 {[%emt 0:03:02]} 19. Nf3 {[%emt 0:06:50]} Bg7 {[%emt 0:05:36]} 20. Qb4 {[%emt 0:00:54]} axb6 {[%emt 0:04:27]} 21. Re1 {[%emt 0:00:25]} Ne7 {[%emt 0:00:18]} 22. Qxb6 {[%emt 0:04:39]} Nc6 {[%emt 0:20:24]} 23. Rg3 {[%emt 0:11:58]} Bc4 {[%emt 0:04:45]} 24. Bf4 {[%emt 0:02:32]} Bxc3 {[%emt 0:01:35]} 25. bxc3 gxf4 {[%emt 0:00:06]} 26. Rg4 {[%emt 0:00:45]} Ra6 {[%emt 0:02:16]} 27. Qb2 {[%emt 0:01:18]} Qd6 {[%emt 0:02:32]} 28. Kd2 {[%emt 0:02:44]} Qb8 {[%emt 0:12:32]} 29. Qxb8+ {[%emt 0:01:10]} Nxb8 {[%emt 0:00:04]} 30. Rxf4 {[%emt 0:00:11]} Nd7 {[%emt 0:01:18]} 31. Nd4 {[%emt 0:03:55]} O-O {[%emt 0:03:10]} 32. f3 {[%emt 0:02:51]} Kh7 {[%emt 0:00:15]} 33. Rh4 {[%emt 0:00:39]} Rg8 {[%emt 0:00:13]} 34. g4 Rxa3 35. Rb1 {[%emt 0:00:44]} Rb8 {[%emt 0:01:21]} 36. Rxb8 {[%emt 0:00:13]} Nxb8 {[%emt 0:00:03]} 37. Rh1 {[%emt 0:00:30]} Ra6 {[%emt 0:00:30]} 38. Rb1 {[%emt 0:00:39]} Nc6 {[%emt 0:00:05]} 39. Rb7 {[%emt 0:00:23]} Nxd4 {[%emt 0:00:11]} 40. cxd4 {[%emt 0:00:15]} Kg7 {[%emt 0:00:29]} 41. f4 {[%emt 0:30:19]} Ra3 {[%emt 0:32:14]} 42. c3 {[%emt 0:00:56]} Ra2+ {[%emt 0:00:05]} 43. Ke3 {[%emt 0:00:08]} Be2 {[%emt 0:00:20]} 0-1

[Event "105th British-ch 2018"]
[Site "Hull"]
[Date "2018.08.01"]
[Round "5"]
[White "Toma, Katarzyna"]
[Black "Trent, Lawrence"]
[Result "1-0"]
[ECO "A08"]
[WhiteElo "2274"]
[BlackElo "2406"]
[Annotator "NA"]
[PlyCount "101"]
[EventDate "2018.07.28"]
[EventType "swiss"]
[EventCountry "GBR"]
[SourceTitle "playchess.com"]
[Source "ChessBase"]
[SourceQuality "1"]
[TimeControl "40/5400+30:1800+30"]

1. e4 {[%emt 0:00:00]} c5 {[%emt 0:00:00]} 2. Nf3 {[%emt 0:00:00]} Nf6 {[%emt 0:00:00]} 3. d3 {[%emt 0:02:42]} Nc6 {[%emt 0:00:36]} 4. Nbd2 {[%emt 0:00:58]} d5 {[%emt 0:04:12]} 5. g3 {[%emt 0:01:28]} g6 {[%emt 0:04:52]} 6. Bg2 {[%emt 0:00:15]} Bg7 {[%emt 0:00:04]} 7. O-O {[%emt 0:00:59]} O-O {[%emt 0:00:07]} 8. Re1 {[%emt 0:03:01]} e6 {[%emt 0:03:49]} 9. c3 {[%emt 0:02:41]} b6 {[%emt 0:06:00]} 10. Qa4 {[%emt 0:06:58]} Bd7 {[%emt 0:03:24]} 11. Qc2 {[%emt 0:01:00]} Rc8 {[%emt 0:01:53]} 12. Nf1 {[%emt 0:00:44]} h6 {[%emt 0:09:42]} 13. h3 {[%emt 0:02:57]} e5 {[%emt 0:00:21]} 14. g4 {[%emt 0:23:52]} d4 {[%emt 0:05:38]} 15. c4 {[%emt 0:02:12]} Nh7 {[%emt 0:05:20]} 16. Ng3 {[%emt 0:01:02]} Ng5 {[%emt 0:00:58]} 17. Bd2 {[%emt 0:07:36]} Nxf3+ {[%emt 0:01:43]} 18. Bxf3 {[%emt 0:00:04]} Qh4 {[%emt 0:00:03]} 19. Kg2 {[%emt 0:00:11]} Nd8 {[%emt 0:00:43]} 20. a3 {[%emt 0:07:33]} Ne6 {[%emt 0:02:35]} 21. Qc1 {[%emt 0:00:05]} Bf6 {[%emt 0:04:19]} 22. Bxh6 {[%emt 0:02:28]} Bg5 {[%emt 0:00:09]} 23. Bxg5 {[%emt 0:00:20]} Nxg5 {[%emt 0:00:02]} 24. Rh1 {[%emt 0:02:15]} f5 {[%emt 0:15:34]} 25. exf5 {[%emt 0:10:25]} Nxf3 {[%emt 0:00:16]} 26. Kxf3 {[%emt 0:00:04]} gxf5 {[%emt 0:00:14]} 27. Ke2 {[%emt 0:08:03]} fxg4 {[%emt 0:00:11]} 28. Ne4 {[%emt 0:00:14]} Rf4 {[%emt 0:17:33]} 29. Qg1 {[%emt 0:00:21]} Qh7 {[%emt 0:07:05]} 30. Qg3 {[%emt 0:05:42]} Rcf8 {[%emt 0:01:50]} 31. hxg4 {[%emt 0:02:05]} Rxe4+ {[%emt 0:00:35]} 32. dxe4 {[%emt 0:02:01]} Qxe4+ {[%emt 0:00:05]} 33. Kd2 {[%emt 0:00:12]} Rf3 {[%emt 0:01:52]} 34. Qh2 {[%emt 0:01:37]} Rd3+ {[%emt 0:03:36]} 35. Kc1 {[%emt 0:00:29]} Qf4+ {[%emt 0:00:06]} 36. Qxf4 {[%emt 0:00:03]} exf4 {[%emt 0:00:01]} 37. Kc2 {[%emt 0:00:45]} Rf3 {[%emt 0:00:04]} 38. Rh2 {[%emt 0:00:11]} Be8 {[%emt 0:00:29]} 39. Re1 {[%emt 0:00:39]} Bg6+ {[%emt 0:00:05]} 40. Kc1 {[%emt 0:00:14]} Kf7 {[%emt 0:00:41]} 41. Re5 {[%emt 0:34:35]} Bd3 {[%emt 0:14:09]} 42. g5 {[%emt 0:00:00]} Kg7 {[%emt 0:05:14]} 43. Rh6 {[%emt 0:00:00]} Rxf2 {[%emt 0:04:54]} 44. Re7+ {[%emt 0:00:00]} Kg8 {[%emt 0:00:08]} 45. Rd6 {[%emt 0:00:00]} Kf8 {[%emt 0:00:21]} 46. Rxa7 {[%emt 0:00:00]} Re2 {[%emt 0:00:05]} 47. Rf6+ {[%emt 0:00:00]} Kg8 {[%emt 0:00:36]} 48. g6 {[%emt 0:00:00]} Re8 {[%emt 0:10:44]} 49. g7 {[%emt 0:00:00]} f3 {[%emt 0:00:54]} 50. Rxf3 {[%emt 0:00:00]} Bxc4 {[%emt 0:00:24]} 51. Rh3 {[%emt 0:00:00]} 1-0

[Event "105th British-ch 2018"]
[Site "Hull"]
[Date "2018.08.01"]
[Round "5"]
[White "Mcmichael, Richard J"]
[Black "Payne, Matthew J"]
[Result "0-1"]
[ECO "A01"]
[WhiteElo "2245"]
[BlackElo "2113"]
[Annotator "NA"]
[PlyCount "84"]
[EventDate "2018.07.28"]
[EventType "swiss"]
[EventCountry "GBR"]
[SourceTitle "playchess.com"]
[Source "ChessBase"]
[SourceQuality "1"]
[TimeControl "40/5400+30:1800+30"]

1. b3 {[%emt 0:00:00]} e5 {[%emt 0:00:00]} 2. Bb2 {[%emt 0:00:00]} Nc6 {[%emt 0:00:32]} 3. e3 {[%emt 0:00:00]} d5 {[%emt 0:02:00]} 4. Bb5 {[%emt 0:00:03]} Bd6 {[%emt 0:02:33]} 5. f4 {[%emt 0:00:09]} Qe7 {[%emt 0:10:59]} 6. Nf3 {[%emt 0:00:21]} Bg4 {[%emt 0:07:31]} 7. fxe5 {[%emt 0:00:30]} Bxe5 {[%emt 0:03:25]} 8. Bxe5 {[%emt 0:00:11]} Bxf3 {[%emt 0:00:11]} 9. Qxf3 {[%emt 0:00:24]} Qxe5 {[%emt 0:00:11]} 10. Bxc6+ {[%emt 0:00:44]} bxc6 {[%emt 0:00:05]} 11. O-O {[%emt 0:01:12]} Nf6 {[%emt 0:02:07]} 12. Nc3 {[%emt 0:00:05]} O-O {[%emt 0:02:32]} 13. Qf4 {[%emt 0:00:36]} Qd6 {[%emt 0:05:20]} 14. Qh4 {[%emt 0:03:37]} Rfe8 {[%emt 0:08:30]} 15. Rf4 {[%emt 0:01:24]} Re5 {[%emt 0:08:36]} 16. Qf2 {[%emt 0:06:06]} Rh5 {[%emt 0:11:38]} 17. h3 {[%emt 0:10:42]} Rg5 {[%emt 0:13:20]} 18. Rf1 {[%emt 0:04:28]} Qe6 {[%emt 0:03:02]} 19. Qf3 {[%emt 0:07:00]} Rf8 {[%emt 0:03:46]} 20. Ra4 {[%emt 0:08:19]} Nd7 {[%emt 0:05:29]} 21. Rxa7 {[%emt 0:15:04]} Ne5 {[%emt 0:00:15]} 22. Qf4 {[%emt 0:00:31]} h6 {[%emt 0:00:12]} 23. Rf2 {[%emt 0:06:49]} Ng6 {[%emt 0:00:49]} 24. Qh2 {[%emt 0:03:34]} Nh4 {[%emt 0:00:19]} 25. Kh1 {[%emt 0:03:06]} Nf5 {[%emt 0:04:17]} 26. Ne2 {[%emt 0:08:21]} Qe4 {[%emt 0:01:56]} 27. Qxc7 {[%emt 0:05:57]} Qxc2 {[%emt 0:00:36]} 28. Qf4 {[%emt 0:06:26]} Qxd2 {[%emt 0:00:57]} 29. e4 {[%emt 0:00:49]} Qe1+ {[%emt 0:00:40]} 30. Kh2 {[%emt 0:00:52]} dxe4 {[%emt 0:00:26]} 31. Ng1 {[%emt 0:02:23]} e3 {[%emt 0:01:53]} 32. Re2 {[%emt 0:00:14]} Qd1 {[%emt 0:00:41]} 33. Ra5 {[%emt 0:01:44]} Ng3 {[%emt 0:00:37]} 34. Rxg5 {[%emt 0:00:21]} Nxe2 {[%emt 0:00:09]} 35. Rxg7+ {[%emt 0:00:50]} Kxg7 {[%emt 0:00:04]} 36. Qg4+ {[%emt 0:00:19]} Kh8 {[%emt 0:00:16]} 37. Nxe2 {[%emt 0:00:04]} Rd8 {[%emt 0:00:21]} 38. h4 {[%emt 0:02:34]} Qd6+ {[%emt 0:00:22]} 39. g3 {[%emt 0:00:44]} Rg8 {[%emt 0:01:21]} 40. Qf3 {[%emt 0:00:23]} Qe6 {[%emt 0:00:45]} 41. Nd4 {[%emt 0:32:01]} Qe5 {[%emt 0:31:06]} 42. Ne2 {[%emt 0:00:00]} Rg6 {[%emt 0:00:00]} 0-1

[Event "105th British-ch 2018"]
[Site "Hull"]
[Date "2018.08.01"]
[Round "5"]
[White "Moore, Graham J"]
[Black "Derakhshani, Borna"]
[Result "1/2-1/2"]
[ECO "A15"]
[WhiteElo "2218"]
[BlackElo "2315"]
[Annotator "NA"]
[PlyCount "94"]
[EventDate "2018.07.28"]
[EventType "swiss"]
[EventCountry "GBR"]
[SourceTitle "playchess.com"]
[Source "ChessBase"]
[SourceQuality "1"]
[TimeControl "40/5400+30:1800+30"]

1. Nf3 {[%emt 0:00:00]} Nf6 {[%emt 0:06:15]} 2. c4 {[%emt 0:00:06]} g6 {[%emt 0:01:56]} 3. b4 {[%emt 0:01:22]} Bg7 {[%emt 0:00:37]} 4. Bb2 {[%emt 0:00:06]} a5 {[%emt 0:06:27]} 5. b5 {[%emt 0:01:38]} a4 {[%emt 0:01:39]} 6. g3 {[%emt 0:03:53]} c6 {[%emt 0:00:11]} 7. Na3 {[%emt 0:04:41]} d5 {[%emt 0:02:12]} 8. Bg2 {[%emt 0:03:45]} O-O {[%emt 0:01:27]} 9. O-O {[%emt 0:00:20]} dxc4 {[%emt 0:06:29]} 10. bxc6 {[%emt 0:04:30]} Nxc6 {[%emt 0:00:13]} 11. Nxc4 {[%emt 0:02:10]} Be6 {[%emt 0:00:24]} 12. Ne3 {[%emt 0:06:40]} a3 {[%emt 0:03:38]} 13. Bc3 {[%emt 0:00:30]} h6 {[%emt 0:06:43]} 14. Ne1 {[%emt 0:00:54]} Nd5 {[%emt 0:01:26]} 15. Bxg7 {[%emt 0:04:59]} Nxe3 {[%emt 0:01:19]} 16. fxe3 {[%emt 0:00:38]} Kxg7 {[%emt 0:00:06]} 17. Nd3 {[%emt 0:11:04]} Bd5 {[%emt 0:00:51]} 18. Bh3 {[%emt 0:08:52]} Qd6 {[%emt 0:04:53]} 19. Qc2 {[%emt 0:01:12]} e5 {[%emt 0:10:37]} 20. Rfb1 {[%emt 0:05:26]} Be4 {[%emt 0:04:18]} 21. Qc3 {[%emt 0:02:34]} h5 {[%emt 0:10:11]} 22. Rb6 {[%emt 0:02:27]} Bxd3 {[%emt 0:05:18]} 23. exd3 {[%emt 0:01:07]} h4 {[%emt 0:03:46]} 24. Rxb7 {[%emt 0:03:53]} hxg3 {[%emt 0:01:01]} 25. hxg3 {[%emt 0:00:15]} Ne7 {[%emt 0:04:12]} 26. Rf1 {[%emt 0:13:08]} Nd5 {[%emt 0:01:08]} 27. Qc4 {[%emt 0:00:59]} Rad8 {[%emt 0:01:04]} 28. Ra7 {[%emt 0:02:04]} Qb8 {[%emt 0:08:13]} 29. Ra5 {[%emt 0:04:21]} Nb6 {[%emt 0:02:10]} 30. Qc3 {[%emt 0:01:51]} f6 {[%emt 0:00:25]} 31. Qxa3 {[%emt 0:01:09]} Rf7 {[%emt 0:00:26]} 32. e4 {[%emt 0:03:24]} Rd6 {[%emt 0:00:01]} 33. Rc1 {[%emt 0:00:52]} Qd8 {[%emt 0:00:27]} 34. Rc3 {[%emt 0:00:23]} Rd4 {[%emt 0:01:04]} 35. Ra7 {[%emt 0:00:20]} Nd7 {[%emt 0:01:14]} 36. Be6 {[%emt 0:01:36]} f5 {[%emt 0:02:31]} 37. Rxd7 {[%emt 0:01:58]} Rfxd7 {[%emt 0:00:37]} 38. Bxd7 {[%emt 0:00:06]} Rxd7 {[%emt 0:00:43]} 39. Qc5 {[%emt 0:00:58]} Qf6 {[%emt 0:00:21]} 40. Qc8 {[%emt 0:00:39]} Rf7 {[%emt 0:01:59]} 41. exf5 {[%emt 0:07:59]} Qg5 {[%emt 0:04:10]} 42. d4 {[%emt 0:02:41]} exd4 {[%emt 0:05:02]} 43. Rd3 {[%emt 0:00:40]} Qh5 {[%emt 0:08:13]} 44. Rxd4 {[%emt 0:17:29]} Qd1+ {[%emt 0:03:39]} 45. Kg2 Qe2+ 46. Kh3 {[%emt 0:00:01]} Qf1+ 47. Kg4 Qe2+ {[%emt 0:00:10]} 1/2-1/2

[Event "105th British-ch 2018"]
[Site "Hull"]
[Date "2018.08.01"]
[Round "5"]
[White "Tozer, Philip Aa"]
[Black "Sugden, John N"]
[Result "1/2-1/2"]
[ECO "A25"]
[WhiteElo "2142"]
[BlackElo "2090"]
[Annotator "NA"]
[PlyCount "98"]
[EventDate "2018.07.28"]
[EventType "swiss"]
[EventCountry "GBR"]
[SourceTitle "playchess.com"]
[Source "ChessBase"]
[SourceQuality "1"]
[TimeControl "40/5400+30:1800+30"]

1. c4 {[%emt 0:00:00]} g6 {[%emt 0:00:04]} 2. g3 {[%emt 0:00:00]} Bg7 {[%emt 0:00:14]} 3. Nc3 {[%emt 0:00:00]} e5 {[%emt 0:00:38]} 4. Bg2 {[%emt 0:00:00]} d6 {[%emt 0:02:16]} 5. e4 {[%emt 0:00:00]} Ne7 {[%emt 0:04:30]} 6. Nge2 {[%emt 0:00:21]} Nbc6 {[%emt 0:00:41]} 7. O-O {[%emt 0:00:14]} Nd4 {[%emt 0:01:55]} 8. Nxd4 {[%emt 0:04:03]} exd4 {[%emt 0:00:10]} 9. Nd5 {[%emt 0:00:29]} c6 {[%emt 0:07:01]} 10. Nf4 {[%emt 0:02:03]} O-O {[%emt 0:04:42]} 11. d3 {[%emt 0:00:15]} Kh8 {[%emt 0:01:22]} 12. Bd2 {[%emt 0:02:28]} Ng8 {[%emt 0:01:02]} 13. b4 {[%emt 0:05:27]} Bd7 {[%emt 0:06:51]} 14. Qc2 {[%emt 0:04:34]} Qc7 {[%emt 0:02:39]} 15. Rac1 {[%emt 0:06:52]} Rad8 {[%emt 0:10:33]} 16. c5 {[%emt 0:04:09]} dxc5 {[%emt 0:01:37]} 17. Qxc5 {[%emt 0:02:07]} b6 {[%emt 0:01:07]} 18. Qc2 {[%emt 0:01:17]} Qd6 {[%emt 0:06:06]} 19. h3 {[%emt 0:07:21]} Rc8 {[%emt 0:01:28]} 20. Qa4 {[%emt 0:04:01]} Ra8 {[%emt 0:02:06]} 21. Ne2 {[%emt 0:02:52]} Rfd8 {[%emt 0:03:21]} 22. f4 {[%emt 0:03:42]} Be8 {[%emt 0:06:09]} 23. Qb3 {[%emt 0:07:14]} Rac8 {[%emt 0:01:02]} 24. e5 {[%emt 0:04:09]} Qe7 {[%emt 0:07:16]} 25. g4 {[%emt 0:11:09]} f6 {[%emt 0:01:37]} 26. e6 {[%emt 0:00:55]} f5 {[%emt 0:00:38]} 27. gxf5 {[%emt 0:01:39]} gxf5 {[%emt 0:00:09]} 28. Ng3 {[%emt 0:00:15]} Nh6 {[%emt 0:01:51]} 29. Bf3 {[%emt 0:04:13]} Rd6 {[%emt 0:02:17]} 30. Rfe1 {[%emt 0:00:59]} Bf6 {[%emt 0:05:04]} 31. Re2 {[%emt 0:01:45]} Bg6 {[%emt 0:02:54]} 32. Be1 {[%emt 0:04:24]} Ng8 {[%emt 0:03:09]} 33. Bf2 {[%emt 0:02:34]} Qg7 {[%emt 0:00:45]} 34. Rec2 {[%emt 0:07:56]} Ne7 {[%emt 0:02:00]} 35. Kh2 {[%emt 0:00:32]} Qh6 {[%emt 0:01:58]} 36. Ne2 {[%emt 0:02:38]} Bh5 {[%emt 0:01:09]} 37. Bxh5 {[%emt 0:00:10]} Qxh5 {[%emt 0:00:08]} 38. Qb2 {[%emt 0:02:16]} Rcd8 {[%emt 0:03:56]} 39. Rc4 {[%emt 0:02:20]} Qf3 {[%emt 0:03:41]} 40. Nxd4 {[%emt 0:00:52]} Rxd4 {[%emt 0:00:47]} 41. Rxd4 {[%emt 0:04:56]} Rxd4 {[%emt 0:00:39]} 42. Rc4 {[%emt 0:00:28]} c5 {[%emt 0:11:53]} 43. bxc5 {[%emt 0:01:53]} bxc5 {[%emt 0:00:26]} 44. Qb8+ {[%emt 0:01:00]} Ng8 {[%emt 0:07:11]} 45. Bxd4 {[%emt 0:00:31]} Qe2+ {[%emt 0:01:27]} 46. Kh1 {[%emt 0:03:29]} Bxd4 {[%emt 0:00:36]} 47. Rxd4 {[%emt 0:00:34]} cxd4 {[%emt 0:02:33]} 48. Qd6 {[%emt 0:02:34]} Qf1+ {[%emt 0:05:15]} 49. Kh2 {[%emt 0:00:02]} Qf2+ {[%emt 0:00:29]} 1/2-1/2

[Event "105th British-ch 2018"]
[Site "Hull"]
[Date "2018.08.01"]
[Round "5"]
[White "Waddington, Mike P"]
[Black "Burke, Mitchell R"]
[Result "1/2-1/2"]
[ECO "B23"]
[WhiteElo "2110"]
[BlackElo "1988"]
[Annotator "NA"]
[PlyCount "52"]
[EventDate "2018.07.28"]
[EventType "swiss"]
[EventCountry "GBR"]
[SourceTitle "playchess.com"]
[Source "ChessBase"]
[SourceQuality "1"]
[TimeControl "40/5400+30:1800+30"]

1. Nc3 {[%emt 0:00:00]} c5 {[%emt 0:00:55]} 2. e4 {[%emt 0:00:00]} Nc6 {[%emt 0:00:53]} 3. f4 {[%emt 0:00:00]} g6 {[%emt 0:01:31]} 4. Nf3 {[%emt 0:00:00]} Bg7 {[%emt 0:00:06]} 5. Bb5 {[%emt 0:01:57]} Nd4 {[%emt 0:03:02]} 6. O-O {[%emt 0:00:16]} a6 {[%emt 0:04:35]} 7. Bd3 {[%emt 0:00:50]} d6 {[%emt 0:01:35]} 8. Nxd4 {[%emt 0:03:02]} cxd4 {[%emt 0:00:39]} 9. Ne2 {[%emt 0:00:36]} Nf6 {[%emt 0:03:53]} 10. Qe1 {[%emt 0:01:03]} O-O {[%emt 0:07:44]} 11. a4 {[%emt 0:12:18]} e5 {[%emt 0:07:38]} 12. c3 {[%emt 0:14:14]} Qc7 {[%emt 0:28:21]} 13. Kh1 {[%emt 0:04:58]} Bg4 {[%emt 0:10:02]} 14. Ng1 {[%emt 0:13:29]} exf4 {[%emt 0:09:50]} 15. cxd4 {[%emt 0:10:17]} Nh5 {[%emt 0:01:46]} 16. Qh4 {[%emt 0:06:32]} Qd7 {[%emt 0:05:21]} 17. Be2 {[%emt 0:03:59]} f5 {[%emt 0:03:29]} 18. exf5 {[%emt 0:02:20]} Bxe2 {[%emt 0:00:13]} 19. Nxe2 {[%emt 0:00:21]} Rxf5 {[%emt 0:00:01]} 20. d3 {[%emt 0:01:47]} Raf8 {[%emt 0:01:39]} 21. Qh3 {[%emt 0:04:08]} Qe7 {[%emt 0:01:38]} 22. Ng1 {[%emt 0:02:03]} Ng3+ {[%emt 0:05:10]} 23. hxg3 {[%emt 0:00:14]} Rh5 {[%emt 0:00:01]} 24. Bxf4 {[%emt 0:01:47]} Rxh3+ {[%emt 0:00:38]} 25. Nxh3 {[%emt 0:00:25]} Bxd4 {[%emt 0:00:13]} 26. Rae1 {[%emt 0:00:10]} Qd7 {[%emt 0:01:23]} 1/2-1/2